[Event "Late-Titled-Tuesday-Blitz-October-24-2023"]
[Site "Chess.com"]
[Date "2023.10.24"]
[Round "4"]
[White "DanylaBagrov"]
[Black "NateSolon"]
[Result "1-0"]
[WhiteElo "2564"]
[BlackElo "2662"]
[TimeControl "180+1"]
[EndTime "14:40:13 PDT"]
[Termination "DanylaBagrov won by resignation"]

1. d4 {[%clk 0:03:00.9]} 1... d5 {[%clk 0:02:59.9]} 2. c4 {[%clk 0:03:01.1]}
2... c6 {[%clk 0:03:00.2]} 3. Nf3 {[%clk 0:03:00.7]} 3... Nf6 {[%clk 0:03:00.3]}
4. Qc2 {[%clk 0:03:01.1]} 4... dxc4 {[%clk 0:03:00]} 5. Qxc4 {[%clk 0:02:59.8]}
5... Bf5 {[%clk 0:02:59.7]} 6. g3 {[%clk 0:02:59.6]} 6... e6 {[%clk 0:03:00.1]}
7. Bg2 {[%clk 0:03:00]} 7... Be7 {[%clk 0:03:00.5]} 8. O-O {[%clk 0:03:00.3]}
8... O-O {[%clk 0:03:00.4]} 9. e3 {[%clk 0:03:00.8]} 9... Nbd7 {[%clk 0:02:56]}
10. Nc3 {[%clk 0:02:58.5]} 10... Bg6 {[%clk 0:02:51.1]} 11. Qe2 {[%clk
0:02:55.2]} 11... b5 {[%clk 0:02:49.7]} 12. Nd2 {[%clk 0:02:43.5]} 12... Rc8
{[%clk 0:02:46.1]} 13. e4 {[%clk 0:02:35.6]} 13... b4 {[%clk 0:02:43.2]} 14. Na4
{[%clk 0:02:35.6]} 14... c5 {[%clk 0:02:35.4]} 15. dxc5 {[%clk 0:02:30.5]} 15...
Nxc5 {[%clk 0:02:34.9]} 16. Nxc5 {[%clk 0:02:29.8]} 16... Bxc5 {[%clk
0:02:35.8]} 17. Nb3 {[%clk 0:02:26.9]} 17... Bb6 {[%clk 0:02:31.1]} 18. Be3
{[%clk 0:02:26]} 18... Bxe3 {[%clk 0:02:16]} 19. Qxe3 {[%clk 0:02:26.9]} 19...
Rc2 {[%clk 0:02:15.6]} 20. Rfd1 {[%clk 0:01:59.1]} 20... Qc7 {[%clk 0:02:06.7]}
21. Rac1 {[%clk 0:01:54.7]} 21... h5 {[%clk 0:01:45.2]} 22. Nc5 {[%clk
0:01:37.9]} 22... Rxc1 {[%clk 0:01:28.4]} 23. Rxc1 {[%clk 0:01:38.8]} 23... Qa5
{[%clk 0:01:25]} 24. e5 {[%clk 0:01:07]} 24... Ng4 {[%clk 0:01:20]} 25. Qd4
{[%clk 0:01:06.4]} 25... Rd8 {[%clk 0:01:14.3]} 26. Qc4 {[%clk 0:00:59.4]} 26...
Rd2 {[%clk 0:01:10]} 27. Nb3 {[%clk 0:00:59.2]} 27... Qd8 {[%clk 0:01:04.2]} 28.
Nxd2 {[%clk 0:00:45.7]} 28... Qxd2 {[%clk 0:01:05.1]} 29. Rf1 {[%clk 0:00:28.2]}
29... Bd3 {[%clk 0:00:52]} 30. Qd4 {[%clk 0:00:28.1]} 30... Qe2 {[%clk
0:00:40.4]} 31. Rc1 {[%clk 0:00:27.9]} 31... Nxe5 {[%clk 0:00:39.8]} 32. Qxb4
{[%clk 0:00:09.2]} 32... Kh7 {[%clk 0:00:24.8]} 33. Qf4 {[%clk 0:00:08.1]} 33...
f6 {[%clk 0:00:18.8]} 34. a3 {[%clk 0:00:06.8]} 34... Ng4 {[%clk 0:00:14.9]} 35.
Bf1 {[%clk 0:00:04.2]} 35... Qe4 {[%clk 0:00:11.3]} 36. Qxe4+ {[%clk 0:00:04.1]}
36... Bxe4 {[%clk 0:00:12.2]} 37. h3 {[%clk 0:00:03.9]} 37... Ne5 {[%clk
0:00:12.8]} 38. b4 {[%clk 0:00:04.6]} 38... Nf3+ {[%clk 0:00:13.1]} 39. Kh1
{[%clk 0:00:03.8]} 39... Ne1+ {[%clk 0:00:13.6]} 40. f3 {[%clk 0:00:03.2]} 40...
Nxf3 {[%clk 0:00:11.3]} 41. Bg2 {[%clk 0:00:03.6]} 41... g5 {[%clk 0:00:10.2]}
42. Bxf3 {[%clk 0:00:03.7]} 42... Bxf3+ {[%clk 0:00:10.3]} 43. Kg1 {[%clk
0:00:04.6]} 43... Kg6 {[%clk 0:00:09.9]} 44. b5 {[%clk 0:00:04.8]} 44... Be2
{[%clk 0:00:09.6]} 45. a4 {[%clk 0:00:05.1]} 45... e5 {[%clk 0:00:09.9]} 46. Rc7
{[%clk 0:00:05.4]} 46... Bd1 {[%clk 0:00:10.3]} 47. Rxa7 {[%clk 0:00:05.5]}
47... e4 {[%clk 0:00:11.2]} 48. Kf2 {[%clk 0:00:04.9]} 48... e3+ {[%clk
0:00:11.7]} 49. Kxe3 {[%clk 0:00:05]} 1-0

[Event "Late-Titled-Tuesday-Blitz-October-24-2023"]
[Site "Chess.com"]
[Date "2023.10.24"]
[Round "4"]
[White "Alphafischer2019"]
[Black "Arash_Tahbaz"]
[Result "1/2-1/2"]
[WhiteElo "2610"]
[BlackElo "2878"]
[TimeControl "180+1"]
[EndTime "14:40:15 PDT"]
[Termination "Game drawn by repetition"]

1. e4 {[%clk 0:03:00.9]} 1... g6 {[%clk 0:03:00.9]} 2. d4 {[%clk 0:03:00.9]}
2... Bg7 {[%clk 0:02:58.6]} 3. Nc3 {[%clk 0:03:01.4]} 3... d6 {[%clk 0:02:58.2]}
4. Be3 {[%clk 0:03:01.6]} 4... Nd7 {[%clk 0:02:47.3]} 5. Qd2 {[%clk 0:03:00.7]}
5... a6 {[%clk 0:02:46.9]} 6. a4 {[%clk 0:02:58.8]} 6... b6 {[%clk 0:02:43.3]}
7. h4 {[%clk 0:02:57.6]} 7... h6 {[%clk 0:02:41.5]} 8. Bc4 {[%clk 0:02:48.5]}
8... Bb7 {[%clk 0:02:39.7]} 9. Nge2 {[%clk 0:02:42.9]} 9... Ngf6 {[%clk
0:02:36.8]} 10. f3 {[%clk 0:02:42.9]} 10... e5 {[%clk 0:02:34.3]} 11. d5 {[%clk
0:02:41.2]} 11... Qe7 {[%clk 0:02:25.2]} 12. g4 {[%clk 0:02:36.4]} 12... h5
{[%clk 0:02:09.1]} 13. g5 {[%clk 0:02:24.2]} 13... Nh7 {[%clk 0:02:08.6]} 14.
Ng3 {[%clk 0:02:00.7]} 14... O-O {[%clk 0:02:08.9]} 15. Be2 {[%clk 0:01:48.4]}
15... Kh8 {[%clk 0:02:07.9]} 16. O-O-O {[%clk 0:01:41.9]} 16... f6 {[%clk
0:01:49.7]} 17. gxf6 {[%clk 0:01:33.4]} 17... Bxf6 {[%clk 0:01:50.6]} 18. Bf2
{[%clk 0:01:16]} 18... b5 {[%clk 0:01:28.3]} 19. a5 {[%clk 0:01:14.9]} 19... Nc5
{[%clk 0:01:11.9]} 20. Rdg1 {[%clk 0:01:11.4]} 20... Rf7 {[%clk 0:00:52.3]} 21.
Nf1 {[%clk 0:01:06.8]} 21... Rg8 {[%clk 0:00:52.5]} 22. Rg2 {[%clk 0:01:01.3]}
22... Qd8 {[%clk 0:00:49.5]} 23. Rhg1 {[%clk 0:00:55.5]} 23... Rfg7 {[%clk
0:00:48.4]} 24. Qh6 {[%clk 0:00:53.3]} 24... Bxh4 {[%clk 0:00:43.8]} 25. Bxh4
{[%clk 0:00:30.5]} 25... Qxh4 {[%clk 0:00:44.7]} 26. Rxg6 {[%clk 0:00:30.7]}
26... Rxg6 {[%clk 0:00:44]} 27. Rxg6 {[%clk 0:00:31.6]} 27... Qe1+ {[%clk
0:00:27.6]} 28. Bd1 {[%clk 0:00:18.4]} 28... Rxg6 {[%clk 0:00:27.5]} 29. Qxg6
{[%clk 0:00:17.2]} 29... Qxf1 {[%clk 0:00:27.3]} 30. Qe8+ {[%clk 0:00:13.6]}
30... Kg7 {[%clk 0:00:27.6]} 31. Qe7+ {[%clk 0:00:13.2]} 31... Kg6 {[%clk
0:00:28.1]} 32. Qxc7 {[%clk 0:00:13.4]} 32... Qf2 {[%clk 0:00:23.7]} 33. Qxd6+
{[%clk 0:00:13.3]} 33... Nf6 {[%clk 0:00:23.5]} 34. Qxe5 {[%clk 0:00:10.1]}
34... Qe3+ {[%clk 0:00:19.2]} 35. Kb1 {[%clk 0:00:09.9]} 35... b4 {[%clk
0:00:19.3]} 36. Qf5+ {[%clk 0:00:10.5]} 36... Kg7 {[%clk 0:00:19.4]} 37. e5
{[%clk 0:00:10.7]} 37... Nxd5 {[%clk 0:00:12.5]} 38. Nxd5 {[%clk 0:00:07.6]}
38... Bxd5 {[%clk 0:00:13.4]} 39. Qf6+ {[%clk 0:00:08.3]} 39... Kg8 {[%clk
0:00:13]} 40. Qg6+ {[%clk 0:00:08.1]} 40... Kh8 {[%clk 0:00:13.4]} 41. Qf6+
{[%clk 0:00:08.4]} 41... Kh7 {[%clk 0:00:13.6]} 42. c3 {[%clk 0:00:07.6]} 42...
b3 {[%clk 0:00:07.9]} 43. Qf5+ {[%clk 0:00:08.2]} 43... Kh6 {[%clk 0:00:08]} 44.
Qf6+ {[%clk 0:00:08.8]} 44... Kh7 {[%clk 0:00:08.6]} 45. Qf5+ {[%clk 0:00:09.4]}
45... Kg7 {[%clk 0:00:08.9]} 46. Qf6+ {[%clk 0:00:10]} 46... Kg8 {[%clk
0:00:09.4]} 47. Qg6+ {[%clk 0:00:10.7]} 47... Kh8 {[%clk 0:00:08.9]} 48. Qf6+
{[%clk 0:00:11.4]} 48... Kh7 {[%clk 0:00:09.3]} 1/2-1/2

[Event "Late-Titled-Tuesday-Blitz-October-24-2023"]
[Site "Chess.com"]
[Date "2023.10.24"]
[Round "4"]
[White "Kostukov_Alex"]
[Black "ellatambien"]
[Result "0-1"]
[WhiteElo "2427"]
[BlackElo "2645"]
[TimeControl "180+1"]
[EndTime "14:40:15 PDT"]
[Termination "ellatambien won on time"]

1. g3 {[%clk 0:02:51.6]} 1... h5 {[%clk 0:02:58]} 2. Nf3 {[%clk 0:02:50.7]} 2...
d5 {[%clk 0:02:53.3]} 3. d4 {[%clk 0:02:48.2]} 3... Bf5 {[%clk 0:02:50]} 4. Bg2
{[%clk 0:02:45]} 4... e6 {[%clk 0:02:49.9]} 5. c4 {[%clk 0:02:42.5]} 5... c6
{[%clk 0:02:47.4]} 6. Qb3 {[%clk 0:02:41.1]} 6... Qb6 {[%clk 0:02:44.6]} 7. Nc3
{[%clk 0:02:41.1]} 7... Be7 {[%clk 0:02:38.6]} 8. c5 {[%clk 0:02:40.3]} 8...
Qxb3 {[%clk 0:02:34.9]} 9. axb3 {[%clk 0:02:41.2]} 9... Na6 {[%clk 0:02:28.7]}
10. Ra4 {[%clk 0:02:34]} 10... Bc2 {[%clk 0:02:24.6]} 11. Nd2 {[%clk 0:02:32.6]}
11... h4 {[%clk 0:02:21.7]} 12. O-O {[%clk 0:02:29.5]} 12... Nf6 {[%clk
0:02:15.3]} 13. e4 {[%clk 0:02:18.4]} 13... dxe4 {[%clk 0:02:03.9]} 14. Ndxe4
{[%clk 0:01:57]} 14... Nc7 {[%clk 0:02:03.3]} 15. Bf4 {[%clk 0:01:46.2]} 15...
Bxe4 {[%clk 0:01:58]} 16. Nxe4 {[%clk 0:01:44.2]} 16... Ncd5 {[%clk 0:01:49]}
17. Nd6+ {[%clk 0:01:35]} 17... Bxd6 {[%clk 0:01:45.9]} 18. Bxd6 {[%clk
0:01:35.9]} 18... a6 {[%clk 0:01:46.1]} 19. Re1 {[%clk 0:01:22.8]} 19... O-O-O
{[%clk 0:01:46.3]} 20. Raa1 {[%clk 0:01:20.1]} 20... g5 {[%clk 0:01:37.1]} 21.
Be5 {[%clk 0:01:18.6]} 21... Rh6 {[%clk 0:01:34.5]} 22. Rad1 {[%clk 0:01:10.6]}
22... Rg8 {[%clk 0:01:22.9]} 23. Kf1 {[%clk 0:01:00.9]} 23... Kd7 {[%clk
0:01:18.6]} 24. Bf3 {[%clk 0:00:56]} 24... g4 {[%clk 0:01:11.3]} 25. Be4 {[%clk
0:00:48.6]} 25... Nxe4 {[%clk 0:01:05.6]} 26. Rxe4 {[%clk 0:00:48.4]} 26... hxg3
{[%clk 0:01:03.8]} 27. Bxg3 {[%clk 0:00:41.4]} 27... f5 {[%clk 0:01:03]} 28. Re5
{[%clk 0:00:37.3]} 28... f4 {[%clk 0:01:02.2]} 29. Rxd5+ {[%clk 0:00:37.5]}
29... exd5 {[%clk 0:00:59.2]} 30. Bxf4 {[%clk 0:00:38.4]} 30... Rf6 {[%clk
0:00:57.9]} 31. Be3 {[%clk 0:00:32.1]} 31... Rf3 {[%clk 0:00:44.5]} 32. Kg2
{[%clk 0:00:31.1]} 32... Re8 {[%clk 0:00:39.5]} 33. Rd3 {[%clk 0:00:25.2]} 33...
Re4 {[%clk 0:00:39.4]} 34. b4 {[%clk 0:00:24.2]} 34... Ke6 {[%clk 0:00:39.5]}
35. Ra3 {[%clk 0:00:19.9]} 35... Kf5 {[%clk 0:00:39.2]} 36. Rc3 {[%clk
0:00:18.7]} 36... Re6 {[%clk 0:00:37.5]} 37. Ra3 {[%clk 0:00:14.9]} 37... Re4
{[%clk 0:00:33.1]} 38. Rc3 {[%clk 0:00:13.7]} 38... Re8 {[%clk 0:00:32.5]} 39.
Ra3 {[%clk 0:00:13.1]} 39... Rh8 {[%clk 0:00:32.5]} 40. Ra1 {[%clk 0:00:12.8]}
40... Rfh3 {[%clk 0:00:32.3]} 41. Rh1 {[%clk 0:00:11.8]} 41... Ke4 {[%clk
0:00:32.8]} 42. Kf1 {[%clk 0:00:11]} 42... Kd3 {[%clk 0:00:32.6]} 43. Rg1 {[%clk
0:00:11.1]} 43... Rg8 {[%clk 0:00:30.1]} 44. Bf4 {[%clk 0:00:10.8]} 44... Rf3
{[%clk 0:00:29.3]} 45. Bg3 {[%clk 0:00:08.8]} 45... Kxd4 {[%clk 0:00:29.2]} 46.
Kg2 {[%clk 0:00:09.4]} 46... Kc4 {[%clk 0:00:29]} 47. Re1 {[%clk 0:00:08.3]}
47... Rf7 {[%clk 0:00:28.6]} 48. Re3 {[%clk 0:00:05.2]} 48... Kxb4 {[%clk
0:00:28.7]} 49. Bd6 {[%clk 0:00:05]} 49... Kc4 {[%clk 0:00:28.3]} 50. Rc3+
{[%clk 0:00:04.7]} 50... Kb4 {[%clk 0:00:27.9]} 51. Re3 {[%clk 0:00:03.2]} 51...
d4 {[%clk 0:00:28.1]} 52. Re4 {[%clk 0:00:02.9]} 52... Kc4 {[%clk 0:00:28.1]}
53. Be5 {[%clk 0:00:02.3]} 53... Rd7 {[%clk 0:00:28.3]} 54. Bd6 {[%clk
0:00:01.8]} 54... a5 {[%clk 0:00:27.6]} 55. Kg3 {[%clk 0:00:01.9]} 55... b6
{[%clk 0:00:27.4]} 0-1

[Event "Late-Titled-Tuesday-Blitz-October-24-2023"]
[Site "Chess.com"]
[Date "2023.10.24"]
[Round "4"]
[White "Dacean99"]
[Black "giomar27"]
[Result "0-1"]
[WhiteElo "2577"]
[BlackElo "2385"]
[TimeControl "180+1"]
[EndTime "14:40:15 PDT"]
[Termination "giomar27 won by checkmate"]

1. d4 {[%clk 0:03:00.9]} 1... Nf6 {[%clk 0:02:58.2]} 2. Nf3 {[%clk 0:03:01.4]}
2... c5 {[%clk 0:02:58.6]} 3. d5 {[%clk 0:03:01.3]} 3... b5 {[%clk 0:02:59]} 4.
a4 {[%clk 0:03:00]} 4... b4 {[%clk 0:02:59]} 5. g3 {[%clk 0:02:58.1]} 5... d6
{[%clk 0:02:56.8]} 6. Bg2 {[%clk 0:02:57.8]} 6... Bb7 {[%clk 0:02:56.1]} 7. c4
{[%clk 0:02:56.6]} 7... bxc3 {[%clk 0:02:49.7]} 8. Nxc3 {[%clk 0:02:56.5]} 8...
g6 {[%clk 0:02:50.1]} 9. O-O {[%clk 0:02:54.9]} 9... Bg7 {[%clk 0:02:50.4]} 10.
e4 {[%clk 0:02:52.9]} 10... O-O {[%clk 0:02:50.3]} 11. Nd2 {[%clk 0:02:51.3]}
11... Na6 {[%clk 0:02:40.3]} 12. Re1 {[%clk 0:02:47.9]} 12... Nd7 {[%clk
0:02:40.6]} 13. Nc4 {[%clk 0:02:45.5]} 13... Nb4 {[%clk 0:02:39.2]} 14. Bg5
{[%clk 0:02:44.2]} 14... h6 {[%clk 0:02:38]} 15. Be3 {[%clk 0:02:18.1]} 15...
Ba6 {[%clk 0:02:36.6]} 16. Nb5 {[%clk 0:02:15.2]} 16... Qb8 {[%clk 0:02:25.1]}
17. Na5 {[%clk 0:02:09.6]} 17... Bxb5 {[%clk 0:02:17.9]} 18. axb5 {[%clk
0:02:09.2]} 18... Qxb5 {[%clk 0:02:18.8]} 19. Bf1 {[%clk 0:02:08.2]} 19... Qb6
{[%clk 0:02:15.7]} 20. Qd2 {[%clk 0:02:05]} 20... Ne5 {[%clk 0:02:13.9]} 21. Kg2
{[%clk 0:02:03.5]} 21... Ng4 {[%clk 0:02:05.9]} 22. Nc4 {[%clk 0:01:59.6]} 22...
Qc7 {[%clk 0:02:01.3]} 23. Rec1 {[%clk 0:01:50.9]} 23... Nxe3+ {[%clk 0:02:00]}
24. Qxe3 {[%clk 0:01:51.8]} 24... f5 {[%clk 0:01:41.5]} 25. exf5 {[%clk
0:01:41.7]} 25... Rxf5 {[%clk 0:01:39.1]} 26. Qe6+ {[%clk 0:01:37.4]} 26... Kh7
{[%clk 0:01:34.7]} 27. Ne3 {[%clk 0:01:37]} 27... Rf6 {[%clk 0:01:16.6]} 28. Qe4
{[%clk 0:01:35.6]} 28... Qb7 {[%clk 0:01:05.6]} 29. h4 {[%clk 0:01:32.7]} 29...
Raf8 {[%clk 0:01:04.4]} 30. Ng4 {[%clk 0:01:32.7]} 30... Rf5 {[%clk 0:00:49.4]}
31. Bc4 {[%clk 0:01:18.1]} 31... h5 {[%clk 0:00:43.5]} 32. Ne3 {[%clk
0:01:04.4]} 32... Rxf2+ {[%clk 0:00:43.5]} 33. Kh1 {[%clk 0:01:04.4]} 33... Qd7
{[%clk 0:00:41.1]} 34. g4 {[%clk 0:01:03.1]} 34... R2f4 {[%clk 0:00:35.2]} 35.
Qg2 {[%clk 0:01:01.4]} 35... Bd4 {[%clk 0:00:31.8]} 36. Ra3 {[%clk 0:00:46.1]}
36... Bxe3 {[%clk 0:00:21.4]} 37. Rxe3 {[%clk 0:00:47]} 37... Rxg4 {[%clk
0:00:22.1]} 38. Qh3 {[%clk 0:00:46.2]} 38... Rff4 {[%clk 0:00:18.9]} 39. Rce1
{[%clk 0:00:38]} 39... Rxh4 {[%clk 0:00:16.2]} 40. Rxe7+ {[%clk 0:00:37.7]}
40... Qxe7 {[%clk 0:00:16.8]} 41. Rxe7+ {[%clk 0:00:37.5]} 41... Kh6 {[%clk
0:00:17.4]} 42. Bf1 {[%clk 0:00:31.5]} 42... Rxf1+ {[%clk 0:00:15.9]} 43. Kg2
{[%clk 0:00:32.2]} 43... Rxh3 {[%clk 0:00:16.6]} 44. Kxf1 {[%clk 0:00:32]} 44...
Rf3+ {[%clk 0:00:15.9]} 45. Ke2 {[%clk 0:00:31.5]} 45... Rf5 {[%clk 0:00:16.8]}
46. Rxa7 {[%clk 0:00:31.2]} 46... Nxd5 {[%clk 0:00:17.7]} 47. Rd7 {[%clk
0:00:30.2]} 47... Nf4+ {[%clk 0:00:17.9]} 48. Kd2 {[%clk 0:00:30.4]} 48... d5
{[%clk 0:00:18.8]} 49. b4 {[%clk 0:00:29]} 49... cxb4 {[%clk 0:00:19]} 50. Rb7
{[%clk 0:00:29.2]} 50... h4 {[%clk 0:00:19.7]} 51. Rxb4 {[%clk 0:00:28.8]} 51...
h3 {[%clk 0:00:20.4]} 52. Rb1 {[%clk 0:00:28.8]} 52... h2 {[%clk 0:00:20.9]} 53.
Rh1 {[%clk 0:00:29.2]} 53... Rh5 {[%clk 0:00:21.5]} 54. Ke3 {[%clk 0:00:29.9]}
54... g5 {[%clk 0:00:22]} 55. Kf3 {[%clk 0:00:30.8]} 55... d4 {[%clk 0:00:22.6]}
56. Kg4 {[%clk 0:00:31.4]} 56... Rh4+ {[%clk 0:00:22.3]} 57. Kg3 {[%clk
0:00:32]} 57... d3 {[%clk 0:00:22.1]} 58. Kf3 {[%clk 0:00:31.6]} 58... d2 {[%clk
0:00:21.7]} 59. Kg3 {[%clk 0:00:31.7]} 59... d1=Q {[%clk 0:00:20.5]} 60. Rxd1
{[%clk 0:00:32.3]} 60... h1=Q {[%clk 0:00:19.6]} 61. Rd6+ {[%clk 0:00:33.2]}
61... Ng6 {[%clk 0:00:19.2]} 62. Rxg6+ {[%clk 0:00:29.7]} 62... Kxg6 {[%clk
0:00:18.9]} 63. Kf2 {[%clk 0:00:30.3]} 63... Qh2+ {[%clk 0:00:18.8]} 64. Ke3
{[%clk 0:00:31.2]} 64... Qg3+ {[%clk 0:00:18.8]} 65. Ke2 {[%clk 0:00:30]} 65...
Rh2+ {[%clk 0:00:19]} 66. Kf1 {[%clk 0:00:30.9]} 66... Qf2# {[%clk 0:00:19.1]}
0-1

[Event "Late-Titled-Tuesday-Blitz-October-24-2023"]
[Site "Chess.com"]
[Date "2023.10.24"]
[Round "4"]
[White "zverr1"]
[Black "Veleamater"]
[Result "0-1"]
[WhiteElo "2492"]
[BlackElo "2340"]
[TimeControl "180+1"]
[EndTime "14:40:17 PDT"]
[Termination "Veleamater won by checkmate"]

1. e4 {[%clk 0:03:00.9]} 1... d6 {[%clk 0:02:53.2]} 2. d4 {[%clk 0:03:00]} 2...
g6 {[%clk 0:02:41.7]} 3. Nc3 {[%clk 0:02:59.8]} 3... Bg7 {[%clk 0:02:42.4]} 4.
Be3 {[%clk 0:02:59.1]} 4... Nf6 {[%clk 0:02:42.9]} 5. h3 {[%clk 0:02:59.2]} 5...
O-O {[%clk 0:02:43.2]} 6. Nge2 {[%clk 0:02:59.2]} 6... Nc6 {[%clk 0:02:43.8]} 7.
g4 {[%clk 0:02:59.4]} 7... e5 {[%clk 0:02:44.1]} 8. Bg2 {[%clk 0:02:59.7]} 8...
Nd7 {[%clk 0:02:43.3]} 9. O-O {[%clk 0:02:56.5]} 9... Nb6 {[%clk 0:02:43.4]} 10.
b3 {[%clk 0:02:55]} 10... h6 {[%clk 0:02:42.4]} 11. Qd2 {[%clk 0:02:52.7]} 11...
Kh7 {[%clk 0:02:42.1]} 12. f4 {[%clk 0:02:47.5]} 12... exf4 {[%clk 0:02:32.8]}
13. Bxf4 {[%clk 0:02:27.5]} 13... f5 {[%clk 0:02:32.6]} 14. exf5 {[%clk
0:02:04.9]} 14... gxf5 {[%clk 0:02:32.4]} 15. g5 {[%clk 0:02:04.6]} 15... hxg5
{[%clk 0:02:01.5]} 16. Bxg5 {[%clk 0:02:04.4]} 16... Qe8 {[%clk 0:01:59.1]} 17.
Rae1 {[%clk 0:01:51.5]} 17... Rg8 {[%clk 0:01:59]} 18. d5 {[%clk 0:01:28.9]}
18... Ne5 {[%clk 0:01:52.8]} 19. Nf4 {[%clk 0:01:24.6]} 19... Qf7 {[%clk
0:01:50.7]} 20. Ne6 {[%clk 0:00:58.5]} 20... Bxe6 {[%clk 0:01:15.3]} 21. dxe6
{[%clk 0:00:59.4]} 21... Qg6 {[%clk 0:01:10.1]} 22. Rxf5 {[%clk 0:00:44.2]}
22... Bh6 {[%clk 0:01:00.7]} 23. Rexe5 {[%clk 0:00:26.9]} 23... dxe5 {[%clk
0:00:56.5]} 24. Rf7+ {[%clk 0:00:26.4]} 24... Kh8 {[%clk 0:00:55.2]} 25. Bxh6
{[%clk 0:00:23.2]} 25... Qxe6 {[%clk 0:00:54.9]} 26. Rxc7 {[%clk 0:00:13.6]}
26... Rg6 {[%clk 0:00:53.5]} 27. Be3 {[%clk 0:00:03.5]} 27... Rag8 {[%clk
0:00:53.2]} 28. Ne4 {[%clk 0:00:01.7]} 28... Rxg2+ {[%clk 0:00:51.9]} 29. Qxg2
{[%clk 0:00:02.6]} 29... Rxg2+ {[%clk 0:00:51.6]} 30. Kxg2 {[%clk 0:00:03.5]}
30... Qg6+ {[%clk 0:00:49.7]} 31. Ng3 {[%clk 0:00:03.6]} 31... Nd5 {[%clk
0:00:49.6]} 32. Rc8+ {[%clk 0:00:03]} 32... Kh7 {[%clk 0:00:49]} 33. Bd2 {[%clk
0:00:02.1]} 33... e4 {[%clk 0:00:48.5]} 34. Kf2 {[%clk 0:00:01.5]} 34... e3+
{[%clk 0:00:47.3]} 35. Bxe3 {[%clk 0:00:01.2]} 35... Nxe3 {[%clk 0:00:47.4]} 36.
Kxe3 {[%clk 0:00:02.1]} 36... Qxg3+ {[%clk 0:00:47.3]} 37. Kd2 {[%clk
0:00:02.7]} 37... Qxh3 {[%clk 0:00:45.3]} 38. Rc7+ {[%clk 0:00:02.4]} 38... Kg6
{[%clk 0:00:44.8]} 39. Kc1 {[%clk 0:00:01.8]} 39... Qg2 {[%clk 0:00:43.5]} 40.
Kb2 {[%clk 0:00:01.6]} 40... Kf6 {[%clk 0:00:43.2]} 41. a4 {[%clk 0:00:01.9]}
41... Ke6 {[%clk 0:00:43.6]} 42. Rc4 {[%clk 0:00:02.6]} 42... Kd6 {[%clk
0:00:43.1]} 43. Rc3 {[%clk 0:00:03]} 43... b6 {[%clk 0:00:42.9]} 44. Rc4 {[%clk
0:00:03.4]} 44... a5 {[%clk 0:00:42]} 45. Kb1 {[%clk 0:00:03.7]} 45... Qd2
{[%clk 0:00:41.2]} 46. Kb2 {[%clk 0:00:04.2]} 46... Kd5 {[%clk 0:00:40.9]} 47.
Kb1 {[%clk 0:00:04.6]} 47... Qd1+ {[%clk 0:00:40.7]} 48. Kb2 {[%clk 0:00:05.2]}
48... Qe2 {[%clk 0:00:38.5]} 49. Kb1 {[%clk 0:00:05.4]} 49... Qxc4 {[%clk
0:00:38.4]} 50. bxc4+ {[%clk 0:00:05.5]} 50... Kxc4 {[%clk 0:00:38.9]} 51. Ka2
{[%clk 0:00:03.4]} 51... Kb4 {[%clk 0:00:39.1]} 52. Kb2 {[%clk 0:00:02.8]} 52...
Kxa4 {[%clk 0:00:39.3]} 53. Ka2 {[%clk 0:00:01.6]} 53... Kb4 {[%clk 0:00:39.5]}
54. Kb2 {[%clk 0:00:02.3]} 54... Kc4 {[%clk 0:00:39.8]} 55. Ka3 {[%clk
0:00:02.5]} 55... Kc3 {[%clk 0:00:39.4]} 56. Ka4 {[%clk 0:00:03.2]} 56... Kxc2
{[%clk 0:00:39.7]} 57. Ka3 {[%clk 0:00:03.9]} 57... b5 {[%clk 0:00:39]} 58. Ka2
{[%clk 0:00:04.5]} 58... b4 {[%clk 0:00:39.3]} 59. Ka1 {[%clk 0:00:05]} 59... a4
{[%clk 0:00:39.1]} 60. Ka2 {[%clk 0:00:05.9]} 60... b3+ {[%clk 0:00:39.4]} 61.
Ka3 {[%clk 0:00:06.3]} 61... b2 {[%clk 0:00:39.8]} 62. Ka2 {[%clk 0:00:07.1]}
62... b1=Q+ {[%clk 0:00:39.4]} 63. Ka3 {[%clk 0:00:08]} 63... Qb3# {[%clk
0:00:38.9]} 0-1